lending/lending_fUSD_20260317
["ID","MTS","AMOUNT","RATE_DAILY","PERIOD"]
[408477039,1773709907436,-529.9225147,0.00012546,2]
[408477040,1773709907462,-529.9225147,0.00012546,2]
[408477041,1773709907485,-529.9225147,0.00012546,2]
[408477042,1773709907509,-529.9225147,0.00012546,2]
[408477043,1773709907532,-529.9225147,0.00012546,2]
[408477044,1773709907555,-529.9225147,0.00012546,2]
[408477045,1773709907579,-529.9225147,0.00012546,2]
[408477046,1773709907603,-529.9225147,0.00012546,2]
[408477047,1773709907628,-529.9225147,0.00012546,2]
[408477048,1773709907653,-529.9225147,0.00012546,2]
[408477049,1773709907678,-529.9225147,0.00012546,2]
[408477050,1773709907704,-529.9225147,0.00012546,2]
[408477051,1773709907730,-529.9225147,0.00012546,2]
[408477052,1773709907758,-529.9225147,0.00012546,2]
[408477053,1773709907786,-252.89334442,0.00012546,2]
[408477054,1773709913094,-277.02917028,0.00012546,2]
[408477055,1773709913124,-529.9225147,0.00012546,2]
[408477056,1773709913152,-529.9225147,0.00012546,2]
[408477057,1773709913180,-529.9225147,0.00012546,2]
[408477058,1773709913207,-529.9225147,0.00012546,2]
[408477059,1773709913234,-529.9225147,0.00012546,2]
[408477060,1773709913261,-529.9225147,0.00012546,2]
[408477061,1773709913289,-6068.04576847,0.00012866,2]
[408477062,1773709913312,-475.38997305,0.00012893,2]
[408477063,1773709914907,-9898.13002695,0.00012893,2]
[408477064,1773709914931,-101.86997305,0.00012893,2]
[408477065,1773709917642,-9898.12002695,0.00012893,2]
[408477066,1773709943957,101.87997305,0.00012825,2]
[408477067,1773709964854,-10000.0,0.00011977,2]
[408477068,1773709967198,-716.0393,0.00011977,2]
[408477069,1773709967223,-98.12002695,0.00012825,2]
[408477070,1773710000188,-2000.0,0.00012932,2]
[408477071,1773710000214,-200.0,0.00012939,2]
[408477072,1773710000235,-166.66,0.0001299,2]
[408477074,1773710022597,-5000.0,0.00013014,2]
[408477075,1773710029025,357.6106,0.00012732,2]
[408477076,1773710035376,726.52,0.00012732,2]
[408477077,1773710055030,8101.71007305,0.00012732,2]
[408477079,1773710630737,2081.98,6.391e-05,2]
[408477080,1773710630952,2081.98,6.728e-05,2]
[408477081,1773710631172,2081.98,7.064e-05,2]
[408477082,1773710631400,2081.98,7.4e-05,2]
[408477083,1773710631631,2081.98,7.737e-05,2]
[408477084,1773710631851,2081.98,8.073e-05,2]
[408477085,1773710632078,2081.98,8.41e-05,2]
[408477086,1773710632366,2081.98,8.746e-05,2]
[408477087,1773710632576,2081.98,9.082e-05,2]
[408477088,1773710632800,2081.98,9.419e-05,2]
[408477115,1773711032276,-351.95748645,9.755e-05,2]
[408477116,1773711032322,-1730.02251355,9.755e-05,2]
[408477117,1773711032332,-2081.98,0.00010092,2]
[408477118,1773711032342,-2081.98,0.00010428,2]
[408477119,1773711032351,-1200.0,0.00010763,2]
[408477120,1773711032362,-245.86021954,0.00010764,2]
[408477121,1773711032375,-1836.11978046,0.00010764,2]
[408477122,1773711032385,-300.0,0.00011099,2]
[408477123,1773711032395,-300.0,0.000111,2]
[408477124,1773711032405,-2081.98,0.00011101,2]
[408477125,1773711032415,-2081.98,0.00011437,2]
[408477126,1773711032427,-500.0,0.00011759,2]
[408477127,1773711032437,-2081.98,0.00011773,2]
[408477128,1773711032446,-1680.0,0.0001184,2]
[408477129,1773711032456,-777.0,0.00012059,2]
[408477131,1773711032465,-2081.98,0.0001211,2]
[408477133,1773711032474,-3894.078,0.00012195,2]
[408477135,1773711032483,-191.975,0.00012195,2]
[408477137,1773711032492,-150.0,0.00012195,2]
[408477139,1773711032502,-14512.39,0.00012196,2]
[408477141,1773711032512,-1041.46,0.00012196,2]
[408477143,1773711032521,-4999.99,0.00012196,2]
[408477145,1773711032531,-2112.93,0.00012196,2]
[408477147,1773711032540,-150.99,0.00012196,2]
[408477148,1773711032549,-4685.24,0.00012196,2]
[408477150,1773711032559,-1188.59,0.00012196,2]
[408477152,1773711032567,-7159.53,0.00012196,2]
[408477154,1773711032576,-1262.85895553,0.00012196,2]
[408477159,1773711032795,-2455.68104447,0.00012196,2]
[408477160,1773711032804,-1546.61,0.00012196,2]
[408477161,1773711032813,-730.78,0.00012196,2]
[408477162,1773711032822,-318.21,0.00012253,2]
[408477163,1773711032831,-167.13,0.00012333,2]
[408477164,1773711032840,-500.0,0.00012356,2]
[408477165,1773711032849,-544.50238219,0.00012446,2]
[408477166,1773711032862,-549.21174,0.00012446,2]
[408477167,1773711032873,-988.26587781,0.00012446,2]
[408477168,1773711032882,-730.78,0.0001247,2]
[408477169,1773711032891,-257.42015588,0.000126,2]
[408477170,1773711032901,-432.71316481,0.000126,2]
[408477171,1773711032910,-90.8208015,0.000126,2]
[408477172,1773711038336,-380.03294898,0.000126,2]
[408477173,1773711038346,-493.60249778,0.000126,2]
[408477174,1773711038356,-161.7065062,0.000126,2]
[408477175,1773711038366,-7184.0240907,0.00012632,2]
[408477176,1773711038375,-3003.50183003,0.00012632,2]
[408477177,1773711038384,-400.07963406,0.00012632,2]
[408477178,1773711038394,-8869.95399448,0.00012632,2]
[408477194,1773711038910,-1183.19206155,0.00012632,2]
[408477195,1773711038920,-1000.0,0.00012632,2]
[408477196,1773711039094,-2500.0,0.00012632,2]
[408477197,1773711039105,-644.81305712,0.00012731,2]
[408477198,1773711039115,-500.0,0.00012731,2]
[408477199,1773711039124,-500.0,0.00012731,2]
[408477200,1773711039134,-500.0,0.00012731,2]
[408477201,1773711039143,-500.0,0.00012731,2]
[408477202,1773711039152,-500.0,0.00012731,2]
[408477203,1773711039162,-482.15275156,0.00012731,2]
[408477204,1773711039172,-503.50208813,0.00012731,2]
[408477205,1773711039183,-503.50208813,0.00012731,2]
[408477206,1773711039192,-503.50208813,0.00012731,2]
[408477207,1773711039202,-503.50208813,0.00012731,2]
[408477208,1773711039211,-503.50208813,0.00012731,2]
[408477209,1773711039222,-503.50208813,0.00012731,2]
[408477210,1773711039231,-503.50208813,0.00012731,2]
[408477211,1773711039240,-503.50208813,0.00012731,2]
[408477212,1773711039250,-503.50208813,0.00012731,2]
[408477213,1773711039260,-503.50208813,0.00012731,2]
[408477214,1773711039270,-503.50208813,0.00012731,2]
[408477215,1773711039280,-503.50208813,0.00012731,2]
[408477216,1773711039289,-503.50208813,0.00012731,2]
[408477217,1773711039298,-503.50208813,0.00012731,2]
[408477218,1773711039308,-503.50208813,0.00012731,2]
[408477219,1773711039317,-503.50208813,0.00012731,2]
[408477220,1773711039326,-503.50208813,0.00012731,2]
[408477221,1773711039335,-503.50208813,0.00012731,2]
[408477222,1773711039345,-503.50208813,0.00012731,2]
[408477223,1773711039354,-503.50208813,0.00012731,2]
[408477224,1773711039363,-503.50208813,0.00012731,2]
[408477225,1773711039372,-503.50208813,0.00012731,2]
[408477226,1773711039382,-503.50208813,0.00012731,2]
[408477227,1773711039391,-503.50208813,0.00012731,2]
[408477228,1773711039400,-503.50208813,0.00012731,2]
[408477229,1773711039409,-503.50208813,0.00012731,2]
[408477230,1773711039418,-503.50208813,0.00012731,2]
[408477231,1773711039429,-503.50208813,0.00012731,2]
[408477232,1773711039439,-503.50208813,0.00012731,2]
[408477233,1773711039448,-503.50208813,0.00012731,2]
[408477234,1773711039457,-503.50208813,0.00012731,2]
[408477235,1773711039466,-503.50208813,0.00012731,2]
[408477236,1773711039476,-503.50208813,0.00012731,2]
[408477237,1773711039485,-503.50208813,0.00012731,2]
[408477238,1773711039494,-503.50208813,0.00012731,2]
[408477239,1773711039503,-503.50208813,0.00012731,2]
[408477240,1773711039512,-503.50208813,0.00012731,2]
[408477241,1773711039521,-503.50208813,0.00012731,2]
[408477242,1773711039532,-503.50208813,0.00012731,2]
[408477243,1773711039542,-503.50208813,0.00012731,2]
[408477244,1773711039551,-503.50208813,0.00012731,2]
[408477245,1773711039561,-503.50208813,0.00012731,2]
[408477246,1773711039570,-503.50208813,0.00012731,2]
[408477247,1773711039579,-503.50208813,0.00012731,2]
[408477248,1773711039588,-503.50208813,0.00012731,2]
[408477249,1773711039600,-503.50208813,0.00012731,2]
[408477250,1773711039609,-503.50208813,0.00012731,2]
[408477251,1773711039621,-503.50208813,0.00012731,2]
[408477252,1773711039632,-503.50208813,0.00012731,2]
[408477253,1773711039642,-503.50208813,0.00012731,2]
[408477254,1773711039652,-503.50208813,0.00012731,2]
[408477255,1773711039663,-503.50208813,0.00012731,2]
[408477256,1773711039672,-503.50208813,0.00012731,2]
[408477257,1773711039682,-503.50208813,0.00012731,2]
[408477258,1773711039691,-503.50208813,0.00012731,2]
[408477259,1773711039701,-503.50208813,0.00012731,2]
[408477260,1773711039711,-503.50208813,0.00012731,2]
[408477261,1773711039720,-221.49849729,0.00012731,2]
[408477262,1773711039730,-671.60932527,0.00012731,2]
[408477263,1773711039742,-744.49029759,0.00012731,2]
[408477264,1773711039752,-596.95492709,0.00012731,2]
[408477268,1773711040698,-644.20590704,0.00012731,2]
[408477269,1773711040847,-174.93878873,0.00012731,2]
[408477270,1773711040856,-275.77581226,0.00012731,2]
[408477271,1773711040896,-1140.3238106,0.00012731,2]
[408477272,1773711040906,-1416.09962286,0.00012731,2]
[408477273,1773711040916,-12.60176654,0.00012731,2]
[408477282,1773711043399,-1403.49785632,0.00012731,2]
[408477283,1773711043409,-1416.09962286,0.00012731,2]
[408477284,1773711043418,-1416.09962286,0.00012731,2]
[408477285,1773711043429,-1416.09962286,0.00012731,2]
[408477286,1773711043438,-1416.09962286,0.00012731,2]
[408477287,1773711043447,-1416.09962286,0.00012731,2]
[408477288,1773711043456,-1416.09962286,0.00012731,2]
[408477289,1773711043465,-1416.09962286,0.00012731,2]
[408477290,1773711043475,-1416.09962286,0.00012731,2]
[408477291,1773711043484,-831.22177985,0.00012731,2]
[408477292,1773711043493,-500.0,0.00012731,2]
[408477293,1773711043503,-500.0,0.00012731,2]
[408477294,1773711043512,-260.96774076,0.00012731,2]
[408477295,1773711043521,-500.0,0.00012731,2]
[408477296,1773711043530,-411.32203406,0.00012731,2]
[408477297,1773711043539,-500.0,0.00012731,2]
[408477298,1773711043548,-366.82226719,0.00012731,2]
[408477299,1773711043557,-500.0,0.00012731,2]
[408477300,1773711043568,-500.0,0.00012731,2]
[408477301,1773711043577,-500.0,0.00012731,2]
[408477302,1773711043586,-500.0,0.00012731,2]
[408477303,1773711043596,-500.0,0.00012731,2]
[408477304,1773711043606,-500.0,0.00012731,2]
[408477305,1773711043615,-500.0,0.00012731,2]
[408477306,1773711043626,-396.08809408,0.00012731,2]
[408477307,1773711043637,-500.0,0.00012731,2]
[408477308,1773711043647,-500.0,0.00012731,2]
[408477309,1773711043656,-500.0,0.00012731,2]
[408477310,1773711043667,-547.06607056,0.00012731,2]
[408477311,1773711043677,-500.0,0.00012731,2]
[408477312,1773711043686,-349.02202352,0.00012731,2]
[408477313,1773711043696,-500.0,0.00012731,2]
[408477314,1773711043705,-349.02202352,0.00012731,2]
[408477315,1773711043715,-849.02202352,0.00012731,2]
[408477316,1773711043724,-166.0,0.00012732,3]
[408477317,1773711043733,-439238.33856359,0.00012732,2]
[408477318,1773711043745,-84515.91976336,0.00012732,2]
[408477319,1773711043755,-46939.53439944,0.00012732,2]
[408477320,1773711043770,-113000.76800056,0.00012732,2]
[408477321,1773711043779,-2699.231,0.00012732,2]
[408477322,1773711043788,-730.78,0.00012744,2]
[408477323,1773711043798,-2081.98,0.00012783,2]
[408477324,1773711043808,-2000.0,0.000129,4]
[408477325,1773711043817,-150.0,0.00012942,2]
[408477326,1773711043827,-9999.99,0.00012942,2]
[408477327,1773711043836,-3670.43,0.00012942,2]
[408477328,1773711043846,-9999.99,0.00012942,2]
[408477329,1773711043855,-299.99,0.00012942,2]
[408477331,1773711043864,-352.17,0.00012942,2]
[408477333,1773711043873,-312.42,0.00012942,2]
[408477335,1773711043882,-999.99,0.00012942,2]
[408477337,1773711043890,-42681.04,0.00012942,2]
[408477339,1773711043899,-9999.99,0.00012942,2]
[408477340,1773711043908,-6277.51,0.00012942,2]
[408477341,1773711043917,-150.99,0.00012942,2]
[408477343,1773711043927,-2000.0,0.00012949,2]
[408477345,1773711043937,-167.13,0.00013012,2]
[408477346,1773711043947,-161.51872514,0.00013014,2]
[408477347,1773711043956,-179.01624936,0.00013014,2]
[408477348,1773711043965,-730.78,0.00013018,2]
[408477349,1773711043975,-2351.0,0.00013024,2]
[408477350,1773711043984,-418.0,0.000132,3]
[408477351,1773711043993,-378.50205694,0.00013275,2]
[408477352,1773711044001,-500.0,0.00013275,2]
[408477353,1773711044011,-500.0,0.00013275,2]
[408477354,1773711044020,-500.0,0.00013275,2]
[408477355,1773711044030,-500.0,0.00013275,2]
[408477356,1773711044039,-500.0,0.00013275,2]
[408477357,1773711044048,-500.0,0.00013275,2]
[408477358,1773711044057,-500.0,0.00013275,2]
[408477359,1773711044066,-750.0,0.00013275,2]
[408477360,1773711044075,-500.0,0.00013275,2]
[408477361,1773711044084,-250.0,0.00013275,2]
[408477362,1773711044094,-750.0,0.00013275,2]
[408477363,1773711044105,-500.0,0.00013275,2]
[408477364,1773711044114,-250.0,0.00013275,2]
[408477365,1773711044124,-750.0,0.00013275,2]
[408477366,1773711044133,-500.0,0.00013275,2]
[408477367,1773711044142,-250.0,0.00013275,2]
[408477368,1773711044151,-750.0,0.00013275,2]
[408477369,1773711044160,-500.0,0.00013275,2]
[408477370,1773711044170,-250.0,0.00013275,2]
[408477371,1773711044179,-750.0,0.00013275,2]
[408477372,1773711044188,-500.0,0.00013275,2]
[408477373,1773711044197,-250.0,0.00013275,2]
[408477374,1773711044207,-342.44280863,0.00013275,2]
[408477375,1773711044215,-250.0,0.00013275,2]
[408477376,1773711044225,-250.0,0.00013275,2]
[408477377,1773711044234,-250.0,0.00013275,2]
[408477378,1773711044243,-250.0,0.00013275,2]
[408477379,1773711044252,-266.40084392,0.00013275,2]
[408477380,1773711044261,-250.0,0.00013275,2]
[408477381,1773711044270,-250.0,0.00013275,2]
[408477382,1773711044279,-151.0,0.00013275,2]
[408477383,1773711044289,-366.4450515,0.00013275,2]
[408477384,1773711044298,-500.0,0.00013275,2]
[408477385,1773711044308,-500.0,0.00013275,2]
[408477386,1773711044318,-500.0,0.00013275,2]
[408477387,1773711044327,-500.0,0.00013275,2]
[408477388,1773711044336,-500.0,0.00013275,2]
[408477389,1773711044345,-260.4103811,0.00013275,2]
[408477390,1773711044355,-500.0,0.00013275,2]
[408477391,1773711044365,-500.0,0.00013275,2]
[408477392,1773711044375,-500.0,0.00013275,2]
[408477393,1773711044385,-500.0,0.00013275,2]
[408477394,1773711044397,-500.0,0.00013275,2]
[408477395,1773711044406,-500.0,0.00013275,2]
[408477396,1773711044416,-255.0,0.0001328,2]
[408477397,1773711044425,-730.78,0.00013292,2]
[408477398,1773711044435,-500.0,0.0001333,2]
[408477399,1773711044443,-151.0,0.0001333,2]
[408477400,1773711044452,-500.0,0.00013385,2]
[408477401,1773711044461,-151.0,0.00013385,2]
[408477402,1773711044471,-166.66,0.00013418,2]
[408477403,1773711044480,-3240.0,0.00013425,2]
[408477404,1773711044489,-7184.02409065,0.0001344,2]
[408477405,1773711044498,-10053.14605597,0.0001344,2]
[408477406,1773711044507,-500.0,0.0001344,2]
[408477407,1773711044516,-151.0,0.0001344,2]
[408477408,1773711044525,-500.0,0.00013495,2]
[408477409,1773711044535,-151.0,0.00013495,2]
[408477410,1773711044545,-500.0,0.0001355,2]
[408477411,1773711044554,-151.0,0.0001355,2]
[408477412,1773711044563,-730.78,0.00013566,2]
[408477413,1773711044574,-1374.05,0.000136,2]
[408477414,1773711044583,-879.0,0.000136,5]
[408477415,1773711044594,-500.0,0.00013605,2]
[408477416,1773711044606,-151.0,0.00013605,2]
[408477417,1773711044617,-500.0,0.0001366,2]
[408477418,1773711044631,-151.0,0.0001366,2]
[408477419,1773711044640,-3003.50182997,0.0001367,2]
[408477420,1773711044650,-167.13,0.0001369,2]
[408477421,1773711044660,-500.0,0.00013699,2]
[408477422,1773711044673,-386.9,0.00013699,2]
[408477423,1773711044686,-200.0,0.00013699,2]
[408477424,1773711044697,-715.42,0.00013699,2]
[408477425,1773711044708,-381.42,0.00013699,2]
[408477426,1773711044718,-160.7385529,0.00013699,2]
[408477427,1773711044728,-151.0,0.00013707,2]
[408477428,1773711044739,-69372.19808381,0.00013707,2]
[408477429,1773711044750,-500.0,0.00013715,2]
[408477430,1773711044894,-157.20679509,0.00013715,2]
[408477431,1773711044905,-151.0,0.00013754,2]
[408477432,1773711044914,-255.12750332,0.00013755,2]
[408477433,1773711044925,-500.0,0.0001377,2]
[408477434,1773711044937,-151.0,0.00013809,2]
[408477435,1773711044947,-270.0455652,0.00013823,2]
[408477436,1773711044958,-500.0,0.00013825,2]
[408477437,1773711044967,-166.66,0.00013847,2]
[408477438,1773711044976,-768.19,0.00013958,2]
[408477439,1773711044986,-301.01787094,0.00013981,7]
[408477440,1773711044997,-2744.7776242,0.00014137,2]
[408477441,1773711045007,-7184.02409065,0.00014247,2]
[408477442,1773711045016,-10053.14605597,0.00014247,2]
[408477443,1773711045026,-521.0,0.00014254,5]
[408477444,1773711045035,-166.66,0.00014276,2]
[408477445,1773711045044,-3292.0,0.00014326,2]
[408477446,1773711045054,-1056.0,0.00014353,5]
[408477447,1773711045064,-167.13,0.00014369,2]
[408477448,1773711045073,-280.03725112,0.00014371,2]
[408477449,1773711045083,-386.9,0.00014384,2]
[408477450,1773711045092,-433.0,0.00014463,2]
[408477451,1773711045101,-369.75805826,0.00014479,2]
[408477452,1773711045111,-612.4426708,0.00014492,2]
[408477453,1773711045121,-2000.0,0.00014567,2]
[408477454,1773711045130,-1260.0,0.00014597,2]
[408477455,1773711045141,-150.0,0.00014597,2]
[408477456,1773711045150,-923.0,0.00014597,2]
[408477457,1773711045159,-1214.0,0.00014597,2]
[408477458,1773711045170,-1344.0,0.00014597,2]
[408477459,1773711045180,-622.12,0.00014597,2]
[408477460,1773711045190,-2465.0,0.00014597,2]
[408477461,1773711045200,-166.66,0.00014705,2]
[408477462,1773711045209,-3003.50182997,0.00014709,2]
[408477463,1773711045220,-1299.86024059,0.00014749,5]
[408477464,1773711045230,-150.0,0.0001475,2]
[408477465,1773711045239,-150.0,0.0001475,2]
[408477466,1773711045248,-150.0,0.0001475,2]
[408477467,1773711045257,-150.0,0.0001475,2]
[408477468,1773711045267,-150.0,0.0001475,2]
[408477469,1773711045276,-150.0,0.0001475,2]
[408477470,1773711045285,-150.0,0.0001475,2]
[408477471,1773711045294,-150.0,0.0001475,2]
[408477472,1773711045304,-150.0,0.0001475,2]
[408477473,1773711045313,-233.743074,0.00014754,7]
[408477474,1773711045322,-213.84392,0.00014754,7]
[408477475,1773711045331,-213.376971,0.00014754,7]
[408477476,1773711045341,-160.0,0.00014754,7]
[408477477,1773711045349,-192.87564,0.00014754,7]
[408477478,1773711045358,-393.107393,0.00014754,7]
[408477479,1773711045367,-225.75128,0.00014754,7]
[408477480,1773711045376,-419.334787,0.00014823,7]
[408477481,1773711045385,-425.372633,0.00014823,7]
[408477482,1773711045394,-290.39862941,0.00014919,2]
[408477483,1773711045403,-500.0,0.00014986,2]
[408477484,1773711045412,-250.0,0.00015,2]
[408477485,1773711045422,-7184.02409065,0.00015055,2]
[408477486,1773711045432,-10053.14605597,0.00015055,2]
[408477487,1773711045441,-386.9,0.00015068,2]
[408477488,1773711045451,-1958.97691727,0.00015125,2]
[408477489,1773711045460,-166.66,0.00015134,2]
[408477490,1773711045470,-400.07963406,0.00015266,2]
[408477491,1773711045480,-154.07514422,0.00015271,2]
[408477492,1773711045491,-768.19,0.00015354,2]
[408477493,1773711045502,-350.684312,0.00015444,7]
[408477494,1773711045511,-301.1433787,0.00015467,2]
[408477495,1773711045522,-363.18532831,0.00015483,2]
[408477496,1773711045532,-832.17,0.00015507,2]
[408477497,1773711045542,-172.765285,0.00015545,7]
[408477498,1773711045551,-196.55,0.00015605,2]
[408477499,1773711045560,-1300.0,0.00015656,2]
[408477500,1773711045570,-1400.0,0.00015656,2]
[408477501,1773711045587,-500.0,0.00015656,2]
[408477502,1773711045597,-736.0,0.00015744,2]
[408477503,1773711045607,-3003.50182997,0.00015747,2]
[408477504,1773711045616,-386.9,0.00015753,2]
[408477505,1773711045627,-4609.0,0.00015759,2]
[408477506,1773711045638,-7184.02409065,0.00015862,2]
[408477507,1773711045649,-10053.14605597,0.00015862,2]
[408477508,1773711045660,-2000.0,0.0001589,2]
[408477509,1773711045671,-832.17,0.00015895,2]
[408477510,1773711045681,-318.21,0.00015897,2]
[408477511,1773711045691,-171.70924483,0.000159,2]
[408477512,1773711045701,-150.0,0.000159,2]
[408477513,1773711045710,-150.86579194,0.000159,2]
[408477514,1773711045721,-150.0,0.000159,2]
[408477515,1773711045732,-150.0,0.000159,2]
[408477516,1773711045741,-150.0,0.000159,2]
[408477517,1773711045752,-4100.0,0.000159,5]
[408477518,1773711045763,-150.0,0.000159,2]
[408477519,1773711045772,-150.0,0.00016,2]
[408477520,1773711045780,-150.0,0.00016,2]
[408477521,1773711045789,-203.227023,0.00016,2]
[408477522,1773711045798,-2000.0,0.00016186,2]
[408477523,1773711045807,-5000.00606002,0.000162,5]
[408477524,1773711045816,-832.17,0.00016282,2]
[408477525,1773711045826,-386.9,0.00016438,2]
[408477526,1773711045835,-200.0,0.00016438,2]
[408477527,1773711045844,-200.0,0.00016438,2]
[408477528,1773711045853,-200.0,0.00016438,2]
[408477529,1773711045862,-200.0,0.00016438,2]
[408477530,1773711045871,-200.0,0.00016438,2]
[408477531,1773711045880,-200.0,0.00016438,2]
[408477532,1773711045889,-200.0,0.00016438,2]
[408477533,1773711045899,-215.5803,0.00016438,2]
[408477534,1773711045908,-929.29934698,0.00016507,2]
[408477535,1773711045918,-160.0,0.00016507,2]
[408477536,1773711045928,-367.64144923,0.0001657,2]
[408477537,1773711045938,-202.07,0.00016616,2]
[408477538,1773711045948,-639.0,0.0001667,5]
[408477539,1773711045957,-7184.02409065,0.0001667,2]
[408477540,1773711045967,-10053.14605597,0.0001667,2]
[408477541,1773711045976,-832.17,0.0001667,2]
[408477542,1773711045985,-167.89,0.000167,2]
[408477543,1773711045994,-266.49,0.00016705,2]
[408477544,1773711046003,-768.19,0.00016749,2]
[408477545,1773711046012,-3003.50182997,0.00016785,2]
[408477546,1773711046021,-151.0,0.00016945,2]
[408477547,1773711046030,-2676.36759031,0.00016954,2]
[408477548,1773711046039,-962.297643,0.00016967,7]
[408477549,1773711046048,-196.55,0.00016974,2]
[408477550,1773711046057,-150.0,0.00016986,2]
[408477551,1773711046066,-150.0,0.00016986,2]
[408477552,1773711046074,-500.0,0.00016986,2]
[408477553,1773711046084,-641.0,0.00016986,2]
[408477554,1773711046092,-500.0,0.00016986,2]
[408477555,1773711046102,-300.0,0.00017,2]
[408477556,1773711046111,-19395.16533113,0.00017,2]
[408477557,1773711046119,-513.0,0.00017,2]
[408477558,1773711046129,-1300.0,0.00017026,7]
[408477559,1773711046138,-1400.0,0.00017026,7]
[408477560,1773711046148,-500.0,0.00017026,7]
[408477561,1773711046157,-2355.21510002,0.00017041,2]
[408477562,1773711046166,-150.0,0.00017041,2]
[408477563,1773711046176,-150.0,0.00017041,2]
[408477565,1773711046187,-500.0,0.00017041,2]
[408477566,1773711046196,-641.0,0.00017041,2]
[408477567,1773711046206,-500.0,0.00017041,2]
[408477568,1773711046216,-318.21,0.00017044,2]
[408477569,1773711046225,-301.222271,0.00017056,7]
[408477570,1773711046236,-832.17,0.00017058,2]
[408477571,1773711046245,-150.0,0.00017067,2]
[408477572,1773711046255,-150.0,0.00017096,2]
[408477573,1773711046264,-150.0,0.00017096,2]
[408477574,1773711046273,-500.0,0.00017096,2]
[408477575,1773711046283,-641.0,0.00017096,2]
[408477576,1773711046291,-500.0,0.00017096,2]
[408477577,1773711046301,-1538.0,0.00017111,2]
[408477578,1773711046310,-168.0,0.00017124,2]
[408477579,1773711046319,-367.64144923,0.00017125,2]
[408477580,1773711046329,-500.0,0.00017136,2]
[408477581,1773711046338,-1252.0,0.00017146,2]
[408477582,1773711046348,-150.0,0.0001715,2]
[408477583,1773711046357,-250.58262965,0.0001715,2]
[408477584,1773711046366,-500.0,0.0001715,2]
[408477585,1773711046375,-641.0,0.0001715,2]
[408477586,1773711046385,-500.0,0.0001715,2]
[408477587,1773711046394,-150.0,0.00017205,2]
[408477588,1773711046403,-177.62322685,0.00017205,2]
[408477589,1773711046412,-641.0,0.00017205,2]
[408477590,1773711046421,-500.0,0.00017205,2]
[408477591,1773711046431,-1691.0,0.00017227,2]
[408477592,1773711046441,-168.0,0.00017231,2]
[408477593,1773711046450,-250.0,0.0001726,2]
[408477594,1773711046459,-641.0,0.0001726,2]
[408477595,1773711046469,-500.0,0.0001726,2]
[408477596,1773711046479,-350.0,0.0001726,2]
[408477597,1773711046488,-350.0,0.0001726,2]
[408477598,1773711046497,-239.03117996,0.0001726,2]
[408477599,1773711046524,-110.96882004,0.0001726,2]
[408477600,1773711046533,-200.00000101,0.000173,2]
[408477601,1773711046542,-589.08759437,0.00017315,2]
[408477602,1773711046554,-51.91240563,0.00017315,2]
[408477603,1773711046563,-500.0,0.00017315,2]
[408477604,1773711046571,-2239.69139802,0.00017334,2]
[408477605,1773711046583,-4213.30860198,0.00017334,2]
[408477606,1773711046592,-641.0,0.0001737,2]
[408477607,1773711046601,-500.0,0.0001737,2]
[408477608,1773711046611,-1538.0,0.00017406,2]
[408477609,1773711046621,-1538.0,0.00017423,2]
[408477610,1773711046633,-1538.0,0.00017423,2]
[408477611,1773711046642,-641.0,0.00017424,2]
[408477612,1773711046650,-500.0,0.00017424,2]
[408477613,1773711046659,-168.0,0.00017427,2]
[408477614,1773711046669,-110.34632503,0.00017437,2]
[408477617,1773711046763,-395.65367497,0.00017437,2]
[408477618,1773711046772,-1100.0,0.0001747,2]